[Event "*** Titled Tuesday Blitz"]
[Site "Chess.com"]
[Date "2020.05.26"]
[Round "5"]
[White "luizwas"]
[Black "Efremov_Vlad"]
[Result "0-1"]
[WhiteElo "1827"]
[BlackElo "2153"]
[TimeControl "180+1"]
[EndTime "10:57:19 PDT"]
[Termination "Efremov_Vlad won on time"]

1. e4 {[%clk 0:03:00.9]} 1... c5 {[%clk 0:02:59.6]} 2. Nf3 {[%clk 0:03:00.1]}
2... e6 {[%clk 0:02:59.8]} 3. d4 {[%clk 0:03:00.1]} 3... cxd4 {[%clk 0:03:00.7]}
4. Nxd4 {[%clk 0:03:00.5]} 4... Nc6 {[%clk 0:03:00.8]} 5. Nc3 {[%clk 0:03:00.4]}
5... Qc7 {[%clk 0:03:00.8]} 6. Be3 {[%clk 0:03:00]} 6... a6 {[%clk 0:03:00.3]}
7. a3 {[%clk 0:02:58.8]} 7... Nf6 {[%clk 0:02:51.6]} 8. f3 {[%clk 0:02:57.5]}
8... Be7 {[%clk 0:02:45.1]} 9. Qd2 {[%clk 0:02:56.2]} 9... b5 {[%clk 0:02:44.7]}
10. h4 {[%clk 0:02:53.7]} 10... h5 {[%clk 0:02:40.5]} 11. Rg1 {[%clk 0:02:35.1]}
11... Bb7 {[%clk 0:02:35.1]} 12. Be2 {[%clk 0:02:26.1]} 12... Rd8 {[%clk
0:02:17.7]} 13. Rd1 {[%clk 0:02:21.3]} 13... Nxd4 {[%clk 0:02:13.8]} 14. Bxd4
{[%clk 0:02:20.6]} 14... e5 {[%clk 0:02:13.2]} 15. Be3 {[%clk 0:02:14.9]} 15...
d5 {[%clk 0:02:13.1]} 16. exd5 {[%clk 0:02:07.1]} 16... Nxd5 {[%clk 0:02:12.4]}
17. Kf2 {[%clk 0:01:36.5]} 17... Nxc3 {[%clk 0:02:07.8]} 18. Qxc3 {[%clk
0:01:35.3]} 18... Qxc3 {[%clk 0:02:06.1]} 19. bxc3 {[%clk 0:01:34.6]} 19...
Bxh4+ {[%clk 0:01:59.2]} 20. g3 {[%clk 0:01:34.8]} 20... Be7 {[%clk 0:01:55.2]}
21. Rxd8+ {[%clk 0:01:30.3]} 21... Bxd8 {[%clk 0:01:55.1]} 22. Rd1 {[%clk
0:01:30.9]} 22... Be7 {[%clk 0:01:55.2]} 23. f4 {[%clk 0:01:25.9]} 23... exf4
{[%clk 0:01:39.8]} 24. Bxf4 {[%clk 0:01:26.8]} 24... Bxa3 {[%clk 0:01:34.5]} 25.
Bc7 {[%clk 0:01:22]} 25... Bc5+ {[%clk 0:01:29.8]} 26. Kf1 {[%clk 0:01:19.9]}
26... O-O {[%clk 0:01:25]} 27. Bxh5 {[%clk 0:01:19.5]} 27... g6 {[%clk
0:01:03.1]} 28. Be2 {[%clk 0:01:09.1]} 28... Rc8 {[%clk 0:01:02.4]} 29. Be5
{[%clk 0:01:06]} 29... Be4 {[%clk 0:00:55.7]} 30. Rd7 {[%clk 0:01:05]} 30...
Bxc2 {[%clk 0:00:48.2]} 31. Bg4 {[%clk 0:00:52.1]} 31... Re8 {[%clk 0:00:46.7]}
32. Bf6 {[%clk 0:00:46.6]} 32... a5 {[%clk 0:00:30.2]} 33. Be2 {[%clk
0:00:38.3]} 33... b4 {[%clk 0:00:29.4]} 34. cxb4 {[%clk 0:00:36.8]} 34... Bxb4
{[%clk 0:00:29.6]} 35. Bb5 {[%clk 0:00:37.2]} 35... Re1+ {[%clk 0:00:28.2]} 36.
Kf2 {[%clk 0:00:34.1]} 36... Rd1 {[%clk 0:00:20.8]} 37. Rc7 {[%clk 0:00:27.6]}
37... Bf5 {[%clk 0:00:19.4]} 38. Bc4 {[%clk 0:00:21.6]} 38... Rd2+ {[%clk
0:00:14.7]} 39. Ke3 {[%clk 0:00:20.5]} 39... Be6 {[%clk 0:00:09.8]} 40. Bxe6
{[%clk 0:00:10.3]} 40... fxe6 {[%clk 0:00:10.7]} 41. Rg7+ {[%clk 0:00:09.8]}
41... Kf8 {[%clk 0:00:11]} 42. Rxg6 {[%clk 0:00:09.2]} 42... Ra2 {[%clk
0:00:10.4]} 43. Rg4 {[%clk 0:00:06.7]} 43... Kf7 {[%clk 0:00:09.8]} 44. Bd4
{[%clk 0:00:06]} 44... Ra3+ {[%clk 0:00:07]} 45. Ke4 {[%clk 0:00:06.5]} 45... a4
{[%clk 0:00:06.3]} 46. Ke5 {[%clk 0:00:06.7]} 46... Be7 {[%clk 0:00:04.7]} 47.
Ke4 {[%clk 0:00:05.3]} 47... Rb3 {[%clk 0:00:03.5]} 48. Rg7+ {[%clk 0:00:05.5]}
48... Ke8 {[%clk 0:00:03.5]} 49. Rg8+ {[%clk 0:00:04.5]} 49... Kd7 {[%clk
0:00:03.7]} 50. Ra8 {[%clk 0:00:04.2]} 50... a3 {[%clk 0:00:03.9]} 51. g4 {[%clk
0:00:04.4]} 51... Rb4 {[%clk 0:00:03.1]} 0-1

[Event "*** Titled Tuesday Blitz"]
[Site "Chess.com"]
[Date "2020.05.26"]
[Round "5"]
[White "2nd_life"]
[Black "Mikhal867"]
[Result "0-1"]
[WhiteElo "2449"]
[BlackElo "2189"]
[TimeControl "180+1"]
[EndTime "10:57:22 PDT"]
[Termination "Mikhal867 won on time"]

1. e4 {[%clk 0:03:00.9]} 1... g6 {[%clk 0:01:56.8]} 2. d4 {[%clk 0:02:58]} 2...
Bg7 {[%clk 0:01:56.6]} 3. Nf3 {[%clk 0:02:57.6]} 3... d6 {[%clk 0:01:56.8]} 4.
Bc4 {[%clk 0:02:57.5]} 4... a6 {[%clk 0:01:56.6]} 5. O-O {[%clk 0:02:54.7]} 5...
e6 {[%clk 0:01:55.2]} 6. Bb3 {[%clk 0:02:53.6]} 6... Ne7 {[%clk 0:01:54.6]} 7.
c3 {[%clk 0:02:52.6]} 7... Nd7 {[%clk 0:01:53.6]} 8. Re1 {[%clk 0:02:50.7]} 8...
h6 {[%clk 0:01:51.1]} 9. h4 {[%clk 0:02:49.2]} 9... Nf6 {[%clk 0:01:49.4]} 10.
Bf4 {[%clk 0:02:40.3]} 10... Ng4 {[%clk 0:01:48.2]} 11. Nh2 {[%clk 0:02:27.3]}
11... e5 {[%clk 0:01:43.8]} 12. Bg3 {[%clk 0:02:10.2]} 12... h5 {[%clk
0:01:40.7]} 13. f3 {[%clk 0:02:01]} 13... Nxh2 {[%clk 0:01:38.6]} 14. Kxh2
{[%clk 0:02:00.8]} 14... O-O {[%clk 0:01:36.4]} 15. Na3 {[%clk 0:01:47.7]} 15...
Nc6 {[%clk 0:01:30.9]} 16. dxe5 {[%clk 0:01:41.3]} 16... Bxe5 {[%clk 0:01:28.7]}
17. Bxe5 {[%clk 0:01:22.8]} 17... Qxh4+ {[%clk 0:01:27.8]} 18. Kg1 {[%clk
0:01:22.7]} 18... Nxe5 {[%clk 0:01:27.1]} 19. Nc4 {[%clk 0:01:21.3]} 19... Nxc4
{[%clk 0:01:18.6]} 20. Bxc4 {[%clk 0:01:21.2]} 20... Qg3 {[%clk 0:01:18.4]} 21.
Qd2 {[%clk 0:01:19]} 21... Kg7 {[%clk 0:01:17]} 22. Qf2 {[%clk 0:01:12.4]} 22...
Qxf2+ {[%clk 0:01:16.1]} 23. Kxf2 {[%clk 0:01:13.3]} 23... Be6 {[%clk
0:01:15.9]} 24. Bb3 {[%clk 0:00:59.6]} 24... a5 {[%clk 0:01:15]} 25. Rad1 {[%clk
0:00:56.2]} 25... a4 {[%clk 0:01:13.9]} 26. Bd5 {[%clk 0:00:55.5]} 26... Ra5
{[%clk 0:01:10.5]} 27. Re2 {[%clk 0:00:44.5]} 27... b6 {[%clk 0:01:08.8]} 28.
Red2 {[%clk 0:00:36.7]} 28... Re8 {[%clk 0:01:08.1]} 29. a3 {[%clk 0:00:35.9]}
29... Kf6 {[%clk 0:01:04.9]} 30. Ke3 {[%clk 0:00:34.4]} 30... g5 {[%clk
0:01:04.1]} 31. g3 {[%clk 0:00:28.1]} 31... Bd7 {[%clk 0:00:48]} 32. Rh2 {[%clk
0:00:22.5]} 32... Rh8 {[%clk 0:00:45.6]} 33. Rdh1 {[%clk 0:00:21.8]} 33... Rb5
{[%clk 0:00:40.6]} 34. Bc4 {[%clk 0:00:15.1]} 34... Rc5 {[%clk 0:00:38.7]} 35.
Bd5 {[%clk 0:00:13.6]} 35... c6 {[%clk 0:00:37.4]} 36. Ba2 {[%clk 0:00:12.9]}
36... g4 {[%clk 0:00:35]} 37. f4 {[%clk 0:00:12.6]} 37... Rb5 {[%clk 0:00:32.1]}
38. Bc4 {[%clk 0:00:11.8]} 38... Rc5 {[%clk 0:00:32]} 39. Bd3 {[%clk 0:00:12]}
39... Ke7 {[%clk 0:00:31.5]} 40. Kd4 {[%clk 0:00:11.1]} 40... Be8 {[%clk
0:00:26.9]} 41. Bc2 {[%clk 0:00:06.8]} 41... f6 {[%clk 0:00:26.7]} 42. Bxa4
{[%clk 0:00:05.5]} 42... d5 {[%clk 0:00:22.3]} 43. e5 {[%clk 0:00:03.7]} 43...
Rc4+ {[%clk 0:00:21.5]} 44. Kd3 {[%clk 0:00:03.7]} 44... Rxa4 {[%clk 0:00:20.1]}
45. exf6+ {[%clk 0:00:03.4]} 45... Kxf6 {[%clk 0:00:19.9]} 46. Re1 {[%clk
0:00:03.5]} 46... Bg6+ {[%clk 0:00:19.8]} 47. Kd2 {[%clk 0:00:03.8]} 47... Re4
{[%clk 0:00:19.6]} 48. Reh1 {[%clk 0:00:03.1]} 48... Rhe8 {[%clk 0:00:18.7]} 49.
Rf2 {[%clk 0:00:02.2]} 49... Re3 {[%clk 0:00:18.7]} 50. f5 {[%clk 0:00:02.2]}
50... Bf7 {[%clk 0:00:18.9]} 0-1

[Event "*** Titled Tuesday Blitz"]
[Site "Chess.com"]
[Date "2020.05.26"]
[Round "5"]
[White "TudorAnton"]
[Black "GasconJR"]
[Result "1-0"]
[WhiteElo "2466"]
[BlackElo "2461"]
[TimeControl "180+1"]
[EndTime "10:57:23 PDT"]
[Termination "TudorAnton won by resignation"]

1. d4 {[%clk 0:03:00.9]} 1... Nf6 {[%clk 0:02:58.3]} 2. c4 {[%clk 0:02:58.1]}
2... c5 {[%clk 0:02:56.2]} 3. e3 {[%clk 0:02:54.7]} 3... cxd4 {[%clk 0:02:54]}
4. exd4 {[%clk 0:02:55.6]} 4... d5 {[%clk 0:02:54.6]} 5. Nc3 {[%clk 0:02:54]}
5... g6 {[%clk 0:02:47.4]} 6. Nf3 {[%clk 0:02:53.7]} 6... Bg7 {[%clk 0:02:46.2]}
7. cxd5 {[%clk 0:02:53.8]} 7... Nxd5 {[%clk 0:02:45.5]} 8. Bc4 {[%clk
0:02:53.4]} 8... Nxc3 {[%clk 0:02:44.9]} 9. bxc3 {[%clk 0:02:54.3]} 9... O-O
{[%clk 0:02:44.8]} 10. O-O {[%clk 0:02:54.7]} 10... Qc7 {[%clk 0:02:44.2]} 11.
Bd3 {[%clk 0:02:48.6]} 11... Qxc3 {[%clk 0:02:26.8]} 12. Bg5 {[%clk 0:02:48.2]}
12... Qc7 {[%clk 0:02:25.2]} 13. Rc1 {[%clk 0:02:47]} 13... Qd8 {[%clk
0:02:22.4]} 14. Re1 {[%clk 0:02:47]} 14... Nc6 {[%clk 0:02:18.8]} 15. Rxc6
{[%clk 0:02:42.8]} 15... bxc6 {[%clk 0:02:19.7]} 16. Bxe7 {[%clk 0:02:42.7]}
16... Qd5 {[%clk 0:02:10.5]} 17. Bxf8 {[%clk 0:02:41]} 17... Kxf8 {[%clk
0:02:11.4]} 18. Be4 {[%clk 0:02:21.6]} 18... Qd6 {[%clk 0:02:04]} 19. Qc2 {[%clk
0:02:17.5]} 19... Bd7 {[%clk 0:01:54.9]} 20. h3 {[%clk 0:02:00.4]} 20... Re8
{[%clk 0:01:52.2]} 21. Rc1 {[%clk 0:01:57.8]} 21... Bxd4 {[%clk 0:01:23.3]} 22.
Nxd4 {[%clk 0:01:25.4]} 22... Qxd4 {[%clk 0:01:23]} 23. Bf3 {[%clk 0:01:13.5]}
23... Kg7 {[%clk 0:01:08.4]} 24. Rd1 {[%clk 0:01:12.3]} 24... Qf6 {[%clk
0:00:52.6]} 25. Rxd7 {[%clk 0:00:52.7]} 25... Re1+ {[%clk 0:00:51.2]} 26. Kh2
{[%clk 0:00:52.8]} 26... Qf4+ {[%clk 0:00:51.4]} 27. g3 {[%clk 0:00:53]} 27...
Qxf3 {[%clk 0:00:52]} 28. Qb2+ {[%clk 0:00:45.1]} 28... Qf6 {[%clk 0:00:21.9]}
29. Qxf6+ {[%clk 0:00:44.2]} 29... Kxf6 {[%clk 0:00:22.8]} 30. Rxa7 {[%clk
0:00:44.8]} 30... Re2 {[%clk 0:00:20.4]} 31. Kg2 {[%clk 0:00:44.7]} 31... Ke6
{[%clk 0:00:21]} 32. Rc7 {[%clk 0:00:43.9]} 32... Rc2 {[%clk 0:00:18.4]} 33. a4
{[%clk 0:00:43.2]} 33... h5 {[%clk 0:00:18.6]} 34. a5 {[%clk 0:00:42.9]} 34...
f5 {[%clk 0:00:11.6]} 35. h4 {[%clk 0:00:40.3]} 35... Kd5 {[%clk 0:00:09.7]} 36.
Rd7+ {[%clk 0:00:38.8]} 36... Kc5 {[%clk 0:00:09.1]} 37. a6 {[%clk 0:00:39]}
37... Ra2 {[%clk 0:00:09.7]} 38. a7 {[%clk 0:00:39.1]} 38... Kb6 {[%clk
0:00:09.9]} 39. Rg7 {[%clk 0:00:38.8]} 39... Rxa7 {[%clk 0:00:09.9]} 40. Rxg6
{[%clk 0:00:39.4]} 40... Kb5 {[%clk 0:00:08.7]} 41. Rg5 {[%clk 0:00:39]} 41...
Rf7 {[%clk 0:00:08.1]} 42. Rxh5 {[%clk 0:00:36.8]} 42... c5 {[%clk 0:00:08.7]}
43. Rh8 {[%clk 0:00:34.1]} 43... Rc7 {[%clk 0:00:07.7]} 44. Rf8 {[%clk
0:00:31.1]} 44... c4 {[%clk 0:00:07.2]} 45. Rxf5+ {[%clk 0:00:31.4]} 45... Rc5
{[%clk 0:00:07.6]} 46. Rf8 {[%clk 0:00:28.5]} 46... c3 {[%clk 0:00:07.5]} 47.
Rb8+ {[%clk 0:00:28.8]} 47... Kc4 {[%clk 0:00:07.3]} 48. Rb1 {[%clk 0:00:29.1]}
48... Kd3 {[%clk 0:00:07.6]} 49. g4 {[%clk 0:00:27.3]} 49... Ke4 {[%clk
0:00:07.2]} 50. Kg3 {[%clk 0:00:26.1]} 50... c2 {[%clk 0:00:07.2]} 51. Re1+
{[%clk 0:00:26.2]} 51... Kd3 {[%clk 0:00:05]} 52. h5 {[%clk 0:00:24.2]} 52...
Kd4 {[%clk 0:00:01.4]} 53. f4 {[%clk 0:00:20.6]} 53... Rc3+ {[%clk 0:00:01.2]}
54. Kh4 {[%clk 0:00:20.4]} 54... Re3 {[%clk 0:00:01.6]} 55. Rc1 {[%clk
0:00:19.9]} 55... Ke4 {[%clk 0:00:02.1]} 56. Rxc2 {[%clk 0:00:19]} 56... Kxf4
{[%clk 0:00:03]} 57. Rf2+ {[%clk 0:00:18.9]} 57... Ke5 {[%clk 0:00:01.7]} 58. h6
{[%clk 0:00:19.1]} 58... Ke6 {[%clk 0:00:01.8]} 59. h7 {[%clk 0:00:18.1]} 59...
Re1 {[%clk 0:00:02.7]} 60. Rh2 {[%clk 0:00:17.9]} 1-0

[Event "*** Titled Tuesday Blitz"]
[Site "Chess.com"]
[Date "2020.05.26"]
[Round "5"]
[White "InitiatingASC"]
[Black "Karinaa87"]
[Result "1/2-1/2"]
[WhiteElo "2394"]
[BlackElo "2547"]
[TimeControl "180+1"]
[EndTime "10:57:24 PDT"]
[Termination "Game drawn by repetition"]

1. Nf3 {[%clk 0:03:00.9]} 1... Nf6 {[%clk 0:02:52.8]} 2. b3 {[%clk 0:03:00.9]}
2... g6 {[%clk 0:02:50.4]} 3. Bb2 {[%clk 0:03:01]} 3... Bg7 {[%clk 0:02:50.9]}
4. e3 {[%clk 0:03:00]} 4... O-O {[%clk 0:02:51.2]} 5. Be2 {[%clk 0:02:57.9]}
5... d6 {[%clk 0:02:51.6]} 6. c4 {[%clk 0:02:57.6]} 6... e5 {[%clk 0:02:51.7]}
7. O-O {[%clk 0:02:57.9]} 7... Nc6 {[%clk 0:02:49.8]} 8. d3 {[%clk 0:02:57.8]}
8... Bg4 {[%clk 0:02:46.6]} 9. Nbd2 {[%clk 0:02:57.6]} 9... Qd7 {[%clk
0:02:46.1]} 10. a3 {[%clk 0:02:55.8]} 10... a5 {[%clk 0:02:44.9]} 11. Qc2 {[%clk
0:02:55.2]} 11... h6 {[%clk 0:02:43.9]} 12. Rfe1 {[%clk 0:02:55.3]} 12... Rae8
{[%clk 0:02:42.7]} 13. Rac1 {[%clk 0:02:49.8]} 13... b6 {[%clk 0:02:41.2]} 14.
Nf1 {[%clk 0:02:49.4]} 14... Bf5 {[%clk 0:02:33.2]} 15. Ng3 {[%clk 0:02:48.9]}
15... Be6 {[%clk 0:02:31.4]} 16. d4 {[%clk 0:02:41.5]} 16... Bg4 {[%clk
0:02:24.7]} 17. dxe5 {[%clk 0:02:34.1]} 17... dxe5 {[%clk 0:02:24.2]} 18. Rcd1
{[%clk 0:02:34.5]} 18... Qc8 {[%clk 0:02:21.9]} 19. Ne4 {[%clk 0:02:27.6]} 19...
Bf5 {[%clk 0:02:11.5]} 20. Nxf6+ {[%clk 0:02:25]} 20... Bxf6 {[%clk 0:02:12.4]}
21. e4 {[%clk 0:02:17.7]} 21... Bg4 {[%clk 0:02:11]} 22. Qc1 {[%clk 0:01:59.7]}
22... Kh7 {[%clk 0:01:59.5]} 23. Qa1 {[%clk 0:01:59.8]} 23... Bxf3 {[%clk
0:01:53.5]} 24. Bxf3 {[%clk 0:02:00.7]} 24... Rd8 {[%clk 0:01:51]} 25. Rd5
{[%clk 0:01:58.4]} 25... Ne7 {[%clk 0:01:45.3]} 26. Rxd8 {[%clk 0:01:54.9]}
26... Rxd8 {[%clk 0:01:43.4]} 27. Bxe5 {[%clk 0:01:55.4]} 27... Bxe5 {[%clk
0:01:36.4]} 28. Qxe5 {[%clk 0:01:56.3]} 28... Nc6 {[%clk 0:01:36.1]} 29. Qf6
{[%clk 0:01:48.8]} 29... Qe6 {[%clk 0:01:32.3]} 30. Qxe6 {[%clk 0:01:22]} 30...
fxe6 {[%clk 0:01:31]} 31. Rd1 {[%clk 0:01:01.6]} 31... Nd4 {[%clk 0:01:28.9]}
32. Kf1 {[%clk 0:01:02.2]} 32... e5 {[%clk 0:01:27.4]} 33. Ke1 {[%clk
0:00:55.3]} 33... Rf8 {[%clk 0:01:24.4]} 34. Rd3 {[%clk 0:00:52]} 34... c5
{[%clk 0:01:23.6]} 35. Bd1 {[%clk 0:00:47.8]} 35... Kg7 {[%clk 0:01:19.8]} 36.
f3 {[%clk 0:00:47.1]} 36... Kf6 {[%clk 0:01:18.4]} 37. Kd2 {[%clk 0:00:47.2]}
37... Ke7 {[%clk 0:01:16.3]} 38. Kc3 {[%clk 0:00:47.4]} 38... g5 {[%clk
0:01:14.6]} 39. h3 {[%clk 0:00:41.6]} 39... h5 {[%clk 0:01:12.4]} 40. Rd2 {[%clk
0:00:41.3]} 40... h4 {[%clk 0:01:11]} 41. b4 {[%clk 0:00:37.7]} 41... axb4+
{[%clk 0:01:10.3]} 42. axb4 {[%clk 0:00:37.5]} 42... Ra8 {[%clk 0:01:10.5]} 43.
b5 {[%clk 0:00:29.7]} 43... Kd6 {[%clk 0:01:05.8]} 44. Kb2 {[%clk 0:00:29]}
44... Ra7 {[%clk 0:01:03]} 45. Be2 {[%clk 0:00:27]} 45... Ke7 {[%clk 0:01:00.9]}
46. Bf1 {[%clk 0:00:27.1]} 46... Ra4 {[%clk 0:00:56]} 47. Rd1 {[%clk 0:00:20.6]}
47... Ne6 {[%clk 0:00:53.3]} 48. Ra1 {[%clk 0:00:19.1]} 48... Rxa1 {[%clk
0:00:52.6]} 49. Kxa1 {[%clk 0:00:18.8]} 49... Nf4 {[%clk 0:00:51.1]} 50. Kb2
{[%clk 0:00:18.8]} 50... Nh5 {[%clk 0:00:51.5]} 51. Kc3 {[%clk 0:00:18.5]} 51...
Ng3 {[%clk 0:00:52]} 52. Bd3 {[%clk 0:00:17.5]} 52... Nh1 {[%clk 0:00:51.7]} 53.
Kd2 {[%clk 0:00:16.9]} 53... Ng3 {[%clk 0:00:48.9]} 54. Ke3 {[%clk 0:00:16.8]}
54... Nh5 {[%clk 0:00:47.8]} 55. Bf1 {[%clk 0:00:15.9]} 55... Nf4 {[%clk
0:00:47.9]} 56. Kf2 {[%clk 0:00:16.3]} 56... Kf6 {[%clk 0:00:47.1]} 57. Ke3
{[%clk 0:00:16]} 57... Ne6 {[%clk 0:00:47.3]} 58. Kf2 {[%clk 0:00:15.9]} 58...
Nd4 {[%clk 0:00:47.6]} 59. Ke3 {[%clk 0:00:12.6]} 59... Nc2+ {[%clk 0:00:44.6]}
60. Kf2 {[%clk 0:00:12.8]} 60... Kg6 {[%clk 0:00:43.8]} 61. Be2 {[%clk
0:00:12.5]} 61... g4 {[%clk 0:00:40.1]} 62. Bf1 {[%clk 0:00:12.4]} 62... gxh3
{[%clk 0:00:36.4]} 63. gxh3 {[%clk 0:00:10.7]} 63... Kg5 {[%clk 0:00:36.7]} 64.
Bd3 {[%clk 0:00:10.2]} 64... Nb4 {[%clk 0:00:34.1]} 65. Bf1 {[%clk 0:00:09.4]}
65... Kf4 {[%clk 0:00:33.8]} 66. Be2 {[%clk 0:00:09.6]} 66... Nc2 {[%clk
0:00:33.3]} 67. Bf1 {[%clk 0:00:09.5]} 67... Nd4 {[%clk 0:00:33.4]} 68. Bg2
{[%clk 0:00:09.8]} 68... Nc2 {[%clk 0:00:30.8]} 69. Bf1 {[%clk 0:00:10]} 69...
Ne3 {[%clk 0:00:30.3]} 70. Be2 {[%clk 0:00:09.7]} 70... Nc2 {[%clk 0:00:27.3]}
71. Bf1 {[%clk 0:00:09.6]} 1/2-1/2

[Event "*** Titled Tuesday Blitz"]
[Site "Chess.com"]
[Date "2020.05.26"]
[Round "5"]
[White "krzyzan94"]
[Black "Superfelix"]
[Result "0-1"]
[WhiteElo "2686"]
[BlackElo "2482"]
[TimeControl "180+1"]
[EndTime "10:57:26 PDT"]
[Termination "Superfelix won by checkmate"]

1. d4 {[%clk 0:03:00.9]} 1... g6 {[%clk 0:02:59.2]} 2. e4 {[%clk 0:03:00.4]}
2... c6 {[%clk 0:02:59]} 3. h4 {[%clk 0:02:58.7]} 3... h5 {[%clk 0:02:58.6]} 4.
Nc3 {[%clk 0:02:55]} 4... d5 {[%clk 0:02:58.6]} 5. e5 {[%clk 0:02:50.8]} 5...
Bh6 {[%clk 0:02:58.3]} 6. Bd3 {[%clk 0:02:44.5]} 6... Bxc1 {[%clk 0:02:55.1]} 7.
Qxc1 {[%clk 0:02:45.4]} 7... Nh6 {[%clk 0:02:55.2]} 8. Nf3 {[%clk 0:02:41.6]}
8... Bf5 {[%clk 0:02:54.4]} 9. Bxf5 {[%clk 0:02:28.8]} 9... Nxf5 {[%clk
0:02:55.3]} 10. Ne2 {[%clk 0:02:29.7]} 10... e6 {[%clk 0:02:54.6]} 11. c3 {[%clk
0:02:29.7]} 11... Qb6 {[%clk 0:02:52.5]} 12. Ng5 {[%clk 0:02:29.7]} 12... c5
{[%clk 0:02:50.1]} 13. dxc5 {[%clk 0:02:23.7]} 13... Qxc5 {[%clk 0:02:51]} 14.
Qf4 {[%clk 0:02:17.9]} 14... Nc6 {[%clk 0:02:46.1]} 15. O-O-O {[%clk 0:02:17.9]}
15... a5 {[%clk 0:02:18.6]} 16. Kb1 {[%clk 0:02:06.8]} 16... a4 {[%clk
0:02:17.5]} 17. Rh3 {[%clk 0:01:33.8]} 17... b5 {[%clk 0:02:14.8]} 18. Nd4
{[%clk 0:01:27]} 18... Ncxd4 {[%clk 0:02:08.1]} 19. cxd4 {[%clk 0:01:27.9]}
19... Qb6 {[%clk 0:02:04.2]} 20. Rc3 {[%clk 0:01:25.6]} 20... a3 {[%clk
0:01:56.6]} 21. b3 {[%clk 0:01:11.2]} 21... O-O {[%clk 0:01:46.7]} 22. g4 {[%clk
0:01:08]} 22... hxg4 {[%clk 0:01:45.4]} 23. h5 {[%clk 0:01:03.9]} 23... gxh5
{[%clk 0:01:41.6]} 24. f3 {[%clk 0:00:51.3]} 24... Rac8 {[%clk 0:01:37.8]} 25.
Rxc8 {[%clk 0:00:49.1]} 25... Rxc8 {[%clk 0:01:37]} 26. fxg4 {[%clk 0:00:43.8]}
26... Qc7 {[%clk 0:01:30.4]} 27. Qd2 {[%clk 0:00:37.1]} 27... hxg4 {[%clk
0:01:13.8]} 28. Qh2 {[%clk 0:00:30.1]} 28... Nh6 {[%clk 0:00:52.8]} 29. Rh1
{[%clk 0:00:15]} 29... Qc3 {[%clk 0:00:50.2]} 30. Qe2 {[%clk 0:00:07.8]} 30...
Qxd4 {[%clk 0:00:45.5]} 31. Rd1 {[%clk 0:00:05.9]} 31... Qc3 {[%clk 0:00:41.5]}
32. Rh1 {[%clk 0:00:06]} 32... d4 {[%clk 0:00:32.7]} 33. Ne4 {[%clk 0:00:05.8]}
33... Qc6 {[%clk 0:00:20.5]} 34. Nf6+ {[%clk 0:00:06.7]} 34... Kf8 {[%clk
0:00:19.7]} 35. Rd1 {[%clk 0:00:04.6]} 35... Qc3 {[%clk 0:00:17.1]} 36. Qh2
{[%clk 0:00:03.2]} 36... Ke7 {[%clk 0:00:14.2]} 37. Ne4 {[%clk 0:00:02.9]} 37...
Qb2+ {[%clk 0:00:10]} 38. Qxb2 {[%clk 0:00:02.3]} 38... axb2 {[%clk 0:00:10.9]}
39. Kxb2 {[%clk 0:00:03.2]} 39... Nf5 {[%clk 0:00:11.4]} 40. a4 {[%clk
0:00:03.9]} 40... bxa4 {[%clk 0:00:11.2]} 41. bxa4 {[%clk 0:00:04.8]} 41... g3
{[%clk 0:00:11.6]} 42. a5 {[%clk 0:00:05.5]} 42... Ra8 {[%clk 0:00:11.3]} 43.
Ra1 {[%clk 0:00:05.2]} 43... g2 {[%clk 0:00:10.5]} 44. Nd2 {[%clk 0:00:05.2]}
44... Rxa5 {[%clk 0:00:08.8]} 45. Rg1 {[%clk 0:00:05.9]} 45... Rxe5 {[%clk
0:00:08.4]} 46. Rxg2 {[%clk 0:00:05.8]} 46... Ne3 {[%clk 0:00:08.3]} 47. Rg8
{[%clk 0:00:05.5]} 47... Rb5+ {[%clk 0:00:08.2]} 48. Ka3 {[%clk 0:00:05.3]}
48... e5 {[%clk 0:00:07.9]} 49. Ne4 {[%clk 0:00:04.8]} 49... f5 {[%clk
0:00:07.4]} 50. Ng5 {[%clk 0:00:04.7]} 50... Kf6 {[%clk 0:00:06.8]} 51. Nh7+
{[%clk 0:00:04.5]} 51... Kf7 {[%clk 0:00:06.6]} 52. Ng5+ {[%clk 0:00:05.4]}
52... Kxg8 {[%clk 0:00:06.3]} 53. Ka4 {[%clk 0:00:06.3]} 53... Rb8 {[%clk
0:00:06.4]} 54. Nf3 {[%clk 0:00:05.5]} 54... d3 {[%clk 0:00:07.3]} 55. Nxe5
{[%clk 0:00:06]} 55... d2 {[%clk 0:00:07.6]} 56. Nd7 {[%clk 0:00:06.9]} 56...
d1=Q+ {[%clk 0:00:07.2]} 57. Ka5 {[%clk 0:00:06.5]} 57... Qa1# {[%clk
0:00:08.1]} 0-1